[Event "GCT Superbet Blitz Poland 2025"]
[Site "Warsaw"]
[Date "2025.04.29"]
[Round "3"]
[White "Fedoseev, Vladimir"]
[Black "Duda, Jan-Krzysztof"]
[Result "1-0"]
[ECO "E06"]
[WhiteElo "2739"]
[BlackElo "2739"]
[Annotator "RC"]
[PlyCount "99"]
[EventDate "2025.??.??"]
[EventType "blitz"]
[TimeControl "300+2"]

1. d4 {[%emt 0:00:00]} Nf6 {[%emt 0:00:02]} 2. c4 {[%emt 0:00:02]} e6 {[%emt 0:00:01]} 3. Nf3 {[%emt 0:00:01]} d5 {[%emt 0:00:01]} 4. g3 {[%emt 0:00:01]} Be7 {[%emt 0:00:01]} 5. Bg2 {[%emt 0:00:02]} O-O {[%emt 0:00:02]} 6. Nc3 {[%emt 0:00:02]} c6 {[%emt 0:00:03]} 7. O-O {[%emt 0:00:26]} a5 {[%emt 0:00:04]} 8. Bf4 {[%emt 0:00:12]} dxc4 {[%emt 0:00:24]} 9. Ne5 {[%emt 0:00:02]} Nd5 {[%emt 0:00:02]} 10. Nxc4 {[%emt 0:00:01]} Nxf4 {[%emt 0:00:02]} ({RR} 10... Nd7 11. Rc1 Nxf4 12. gxf4 Nf6 13. e3 Bd7 14. Kh1 Be8 15. a3 Kh8 16. Rg1 Nd5 17. Ne4 Rc8 18. Qd2 b6 19. Ng3 f5 20. Ne5 Bd6 21. Rc2 Bxe5 22. fxe5 f4 23. exf4 Nxf4 24. Be4 c5 25. dxc5 {Jones,G (2639)-Mamedyarov,S (2738) London ENG 2024 ½-½ (55)}) 11. gxf4 {[%emt 0:00:02]} Nd7 {[%emt 0:00:02]} 12. Kh1 $146 {[%emt 0:00:35]} ({RR} 12. e3 Nb6 13. Ne5 f6 14. Nd3 Nd5 15. Rc1 Kh8 16. Kh1 Bd6 17. Rg1 Qe7 18. Ne4 Bc7 19. Qh5 Nb4 20. Bf1 e5 21. dxe5 fxe5 22. Nxe5 Bxe5 23. Qxe5 Qxe5 24. fxe5 Be6 25. f4 Bxa2 26. Bc4 Bxc4 {Maurizzi,M (2597)-Moussard,J (2630) Djerba TUN 2024 1-0 (41)}) ({RR} 12. e3 Nf6 13. Rc1 Nd5 14. Kh1 Kh8 15. Rg1 g6 16. Ne5 Qe8 17. Be4 Rg8 18. Qf3 Rg7 19. Rg2 a4 20. Ne2 Ra5 21. Rcg1 Rb5 22. Nc3 Rxb2 23. Nxd5 exd5 24. Bd3 f5 25. Qh5 gxh5 26. Rg3 {0-1 (26) Veleski,R (2093)-Palczert,M (2434) Eforie Nord ROU 2025}) ({RR} 12. Rc1 a4 13. e3 Ra7 14. a3 Nb6 15. Nxb6 Qxb6 16. Qc2 Qa5 17. Kh1 Bd7 18. Ne4 g6 19. Nc5 Rd8 20. Rfd1 Be8 21. Bf3 Kf8 22. Kg2 b6 23. Nd3 Rc7 24. Qe2 c5 25. dxc5 bxc5 26. Ne5 Rxd1 {Makarian,R (2546)-Oleksiyenko,M (2592) chess.com INT 2023 1-0 (56)}) ({RR} 12. e3 Nf6 13. Rc1 Bd7 14. Kh1 Be8 15. Rg1 Kh8 16. Qf3 Rg8 17. Qh3 Rc8 18. f5 exf5 19. Qxf5 Ra8 20. Rgd1 g6 21. Qe5 Rg7 22. d5 Nd7 23. Qf4 Bg5 24. Qf3 c5 25. Ne4 Bh4 26. Ned6 Rb8 {Jones,G (2646)-Brunello,S (2511) Budapest HUN 2024 1-0 (58)}) 12... Nf6 {[%emt 0:00:19]} 13. Bf3 {[%emt 0:00:21]} Qc7 {[%emt 0:00:23]} 14. Ne5 {[%emt 0:00:05]} Rd8 {[%emt 0:00:07]} 15. Rc1 {[%emt 0:00:32]} Qb6 {[%emt 0:00:40]} 16. e3 {[%emt 0:00:01]} Bd7 {[%emt 0:00:37]} 17. Na4 {[%emt 0:00:12]} Qa7 {[%emt 0:00:21]} 18. Qb3 {[%emt 0:00:14]} Be8 {[%emt 0:00:14]} 19. a3 {[%emt 0:00:12]} Nd5 {[%emt 0:00:19]} 20. Rg1 {[%emt 0:00:03]} Rac8 {[%emt 0:00:07]} 21. f5 {[%emt 0:01:14]} exf5 {[%emt 0:00:40]} 22. Bxd5 {[%emt 0:00:06]} cxd5 {[%emt 0:00:02]} 23. Rxc8 {[%emt 0:00:01]} Rxc8 {[%emt 0:00:01]} 24. Nb6 {[%emt 0:00:03]} Rd8 {[%emt 0:00:04]} 25. Nxd5 {[%emt 0:00:07]} b5 {[%emt 0:00:03]} 26. f3 {[%emt 0:00:39]} Kh8 {[%emt 0:00:29]} 27. Nf4 {[%emt 0:00:11]} Bd6 {[%emt 0:00:18]} 28. Qc2 {[%emt 0:00:04]} Bxe5 {[%emt 0:00:17]} 29. dxe5 {[%emt 0:00:01]} Qxe3 {[%emt 0:00:08]} 30. Qg2 {[%emt 0:00:22]} g6 {[%emt 0:00:02]} 31. Qg5 {[%emt 0:00:01]} Qxf3+ {[%emt 0:00:03]} 32. Ng2 {[%emt 0:00:00]} Qd5 {[%emt 0:00:05]} 33. Qf6+ {[%emt 0:00:03]} Kg8 {[%emt 0:00:00]} 34. h4 {[%emt 0:00:02]} Bc6 {[%emt 0:00:02]} 35. h5 {[%emt 0:00:00]} Re8 {[%emt 0:00:03]} 36. h6 {[%emt 0:00:02]} Qxe5 {[%emt 0:00:01]} 37. Qxc6 {[%emt 0:00:00]} Qe7 {[%emt 0:00:03]} 38. Re1 {[%emt 0:00:03]} Qxe1+ 39. Nxe1 {[%emt 0:00:01]} Rxe1+ {[%emt 0:00:03]} 40. Kg2 {[%emt 0:00:00]} Kf8 {[%emt 0:00:01]} 41. Qc5+ {[%emt 0:00:02]} Re7 {[%emt 0:00:02]} 42. Qd4 {[%emt 0:00:04]} f6 {[%emt 0:00:02]} 43. Qxf6+ Ke8 44. Qc6+ {[%emt 0:00:03]} Kf7 {[%emt 0:00:01]} 45. Kf3 {[%emt 0:00:03]} g5 {[%emt 0:00:02]} 46. Qd5+ {[%emt 0:00:02]} Kf6 {[%emt 0:00:07]} 47. Qxb5 {[%emt 0:00:03]} g4+ {[%emt 0:00:02]} 48. Kf2 {[%emt 0:00:03]} f4 {[%emt 0:00:03]} 49. Qxa5 {[%emt 0:00:02]} Re5 {[%emt 0:00:02]} 50. Qc7 {[%emt 0:00:03]} 1-0

[Event "GCT Superbet Blitz Poland 2025"]
[Site "Warsaw"]
[Date "2025.04.29"]
[Round "3"]
[White "Vachier-Lagrave, Maxime"]
[Black "Topalov, Veselin"]
[Result "1-0"]
[ECO "A62"]
[WhiteElo "2722"]
[BlackElo "2717"]
[Annotator "RC"]
[PlyCount "105"]
[EventDate "2025.??.??"]
[EventType "blitz"]
[TimeControl "300+2"]

1. c4 {[%emt 0:13:47]} Nf6 {[%emt 0:00:06]} 2. d4 {[%emt 0:00:04]} e6 {[%emt 0:00:03]} 3. Nf3 {[%emt 0:00:05]} c5 {[%emt 0:00:06]} 4. d5 {[%emt 0:00:13]} exd5 {[%emt 0:00:01]} 5. cxd5 {[%emt 0:00:01]} d6 6. Nc3 {[%emt 0:00:04]} g6 {[%emt 0:00:02]} 7. g3 {[%emt 0:00:10]} Bg7 {[%emt 0:00:01]} 8. Bg2 O-O {[%emt 0:00:02]} 9. O-O {[%emt 0:00:02]} Re8 {[%emt 0:00:02]} 10. Bf4 {[%emt 0:00:05]} Na6 {[%emt 0:00:34]} 11. Re1 {[%emt 0:00:27]} Bg4 {[%emt 0:00:07]} 12. Qb3 {[%emt 0:00:13]} ({RR} 12. h3 Bf5 13. Nh4 Bc8 14. Qd2 Nh5 15. Bg5 f6 16. Bh6 Bxh6 17. Qxh6 Ng7 18. e4 Bd7 19. f4 Nb4 20. e5 f5 21. Nf3 Nh5 22. Rad1 Nc2 23. Ng5 Qe7 24. exd6 Qxe1+ 25. Rxe1 Rxe1+ 26. Bf1 Nf6 {Enkhsaran,B (1926)-Emujin Enkh-Amgalan (1906) Choibalsan MGL 2024 ½-½ (81)}) 12... Rb8 {[%emt 0:00:41]} ({RR} 12... b5 13. Nxb5 Rb8 14. Qa4 Qd7 15. Qxa6 Rxb5 16. Qxd6 Qxd6 17. Bxd6 Ne4 18. Bc7 Rxb2 19. d6 Bd7 20. Rab1 c4 21. Rxb2 Bxb2 22. e3 c3 23. Nd4 f5 24. Bf1 Nd2 25. Bd3 c2 26. Nxc2 Nf3+ 27. Kf1 {Grischuk,A (2756)-Gashimov,V (2740) Nice 2010 0-1 (45)}) 13. Nb5 {[%emt 0:00:07]} Bf8 $146 {[%emt 0:00:33]} ({RR} 13... Re4 14. a3 c4 15. Qc2 Qb6 16. Nc3 Ree8 17. Nd2 Rbc8 18. e4 Nh5 19. Be3 Qa5 20. h3 Bd7 21. g4 Nf6 22. Bf4 Qc7 23. Nf3 Nc5 24. e5 dxe5 25. Nxe5 Nh5 26. d6 Qxd6 27. Rad1 Nd3 28. Nxd3 {Krylov,M (2503)-Vavulin,M (2283) Moscow 2012 0-1 (64)}) 14. h3 Bxf3 {[%emt 0:00:02]} 15. Bxf3 {[%emt 0:00:01]} Nc7 {[%emt 0:00:07]} 16. a4 {[%emt 0:00:13]} a6 {[%emt 0:00:03]} 17. Nxc7 {[%emt 0:00:03]} Qxc7 {[%emt 0:00:01]} 18. a5 Bg7 {[%emt 0:00:05]} 19. h4 {[%emt 0:00:10]} Nd7 {[%emt 0:00:02]} 20. Qc2 {[%emt 0:00:05]} Ne5 {[%emt 0:00:06]} 21. h5 {[%emt 0:00:13]} b5 {[%emt 0:00:16]} 22. axb6 {[%emt 0:00:02]} Rxb6 23. Kg2 {[%emt 0:00:05]} Rxb2 {[%emt 0:00:38]} 24. Qxb2 Nxf3 25. Qa2 {[%emt 0:00:22]} Nxe1+ {[%emt 0:00:02]} 26. Rxe1 a5 {[%emt 0:00:12]} 27. Qa4 {[%emt 0:00:06]} Ra8 {[%emt 0:00:13]} 28. h6 {[%emt 0:00:05]} Bf8 {[%emt 0:00:02]} 29. Rb1 {[%emt 0:00:04]} c4 {[%emt 0:00:10]} 30. Rc1 {[%emt 0:00:12]} Rc8 {[%emt 0:00:02]} 31. Bd2 {[%emt 0:00:01]} Qe7 {[%emt 0:00:09]} 32. Rxc4 {[%emt 0:00:06]} Rxc4 {[%emt 0:00:37]} 33. Qxc4 {[%emt 0:00:01]} a4 34. Bc1 {[%emt 0:00:06]} f5 {[%emt 0:00:16]} 35. Qxa4 {[%emt 0:00:11]} Qxe2 {[%emt 0:00:01]} 36. Bg5 {[%emt 0:00:16]} Qd3 {[%emt 0:00:28]} 37. Qc6 {[%emt 0:00:08]} Qe4+ {[%emt 0:00:01]} 38. Kh2 {[%emt 0:00:04]} Qg4 {[%emt 0:00:02]} 39. Be3 {[%emt 0:00:08]} Qf3 {[%emt 0:00:11]} 40. Kg1 {[%emt 0:00:04]} Qd1+ {[%emt 0:00:04]} 41. Kg2 Qd3 42. Qb7 {[%emt 0:00:07]} Qe4+ {[%emt 0:00:01]} 43. Kg1 {[%emt 0:00:01]} Qf3 {[%emt 0:00:05]} 44. Qa8 {[%emt 0:00:08]} Qe4 {[%emt 0:00:02]} 45. Bf4 {[%emt 0:00:02]} Qe1+ {[%emt 0:00:03]} 46. Kg2 Qe4+ 47. Kh2 Qf3 48. Kg1 {[%emt 0:00:03]} Qd1+ {[%emt 0:00:11]} 49. Kg2 Kf7 {[%emt 0:00:02]} 50. Qb7+ {[%emt 0:00:08]} Kg8 51. Bxd6 {[%emt 0:00:04]} Bxh6 {[%emt 0:00:03]} 52. Qc8+ Kf7 {[%emt 0:00:01]} 53. Qd7+ {[%emt 0:00:02]} 1-0

[Event "GCT Superbet Blitz Poland 2025"]
[Site "Warsaw"]
[Date "2025.04.29"]
[Round "3"]
[White "Deac, Bogdan-Daniel"]
[Black "Aravindh, Chithambaram VR."]
[Result "0-1"]
[ECO "E16"]
[WhiteElo "2668"]
[BlackElo "2749"]
[Annotator "RC"]
[PlyCount "110"]
[EventDate "2025.??.??"]
[EventType "blitz"]
[TimeControl "300+2"]

1. d4 {[%emt 0:00:02]} Nf6 {[%emt 0:00:02]} 2. Nf3 {[%emt 0:00:02]} e6 {[%emt 0:00:02]} 3. c4 {[%emt 0:00:02]} Bb4+ {[%emt 0:00:03]} 4. Nbd2 {[%emt 0:00:02]} O-O {[%emt 0:00:02]} 5. g3 {[%emt 0:00:02]} b6 {[%emt 0:00:13]} 6. Bg2 {[%emt 0:00:04]} Bb7 {[%emt 0:00:02]} 7. O-O {[%emt 0:00:12]} Bxd2 {[%emt 0:00:46]} 8. Qxd2 {[%emt 0:00:09]} d6 {[%emt 0:00:04]} 9. b3 {[%emt 0:00:14]} Nbd7 {[%emt 0:00:01]} 10. Bb2 {[%emt 0:00:01]} a5 {[%emt 0:00:02]} ({RR} 10... Ne4 11. Qc2 f5 12. d5 e5 13. Nh4 g6 14. Bxe4 fxe4 15. Qxe4 Nc5 16. Qc2 Bc8 17. f4 Bh3 18. Rf2 Qe7 19. Nxg6 hxg6 20. Qxg6+ Qg7 21. Qxg7+ Kxg7 22. fxe5 Kg6 23. e6 Ne4 24. Rf4 Rxf4 25. gxf4 {Barria Zuniga,D (2341)-Pranav,V (2615) chess.com INT 2025 0-1 (40)}) 11. Rfd1 {[%emt 0:00:37]} ({RR} 11. Rac1 Ra7 12. Rfd1 Ne4 13. Qc2 f5 14. d5 e5 15. Nh4 g6 16. Rf1 Ndc5 17. f3 Nf6 18. f4 Qe7 19. fxe5 dxe5 20. Nf3 Nfd7 21. Qc3 Re8 22. Qe3 Ne4 23. Nh4 Nd6 24. Bh3 Raa8 25. Bxf5 Nxf5 {Andreikin,D (2729)-Pranav,V (2611) chess.com INT 2024 1-0 (48)}) 11... a4 {[%emt 0:00:04]} 12. Qc2 $146 {[%emt 0:00:12]} ({RR} 12. Bh3 Qe7 13. Qc2 axb3 14. axb3 Be4 15. Qc3 Rxa1 16. Rxa1 Ra8 17. Nd2 Rxa1+ 18. Bxa1 Bb7 19. f3 d5 20. Bb2 c5 21. dxc5 Qxc5+ 22. Qd4 dxc4 23. Nxc4 Ba6 24. Kf2 {½-½ (25) Arencibia Rodriguez,W (2542)-Delgado Ramirez,N (2506) Holguin 2002}) 12... Be4 {[%emt 0:00:14]} 13. Qc3 {[%emt 0:00:13]} Qb8 {[%emt 0:00:02]} 14. Bh3 {[%emt 0:01:24]} b5 {[%emt 0:00:14]} 15. Ne1 {[%emt 0:00:20]} Qb7 {[%emt 0:00:48]} 16. f3 {[%emt 0:00:45]} Bg6 {[%emt 0:00:01]} 17. e4 {[%emt 0:00:28]} Rfb8 {[%emt 0:00:20]} 18. Nd3 {[%emt 0:00:38]} Ra6 {[%emt 0:01:33]} 19. Rac1 {[%emt 0:00:07]} axb3 {[%emt 0:00:18]} 20. axb3 {[%emt 0:00:01]} bxc4 {[%emt 0:00:03]} 21. bxc4 {[%emt 0:00:01]} Ra2 {[%emt 0:00:02]} 22. Rd2 {[%emt 0:00:03]} Bxe4 {[%emt 0:00:06]} 23. Ra1 {[%emt 0:00:05]} Rxa1+ {[%emt 0:00:05]} 24. Bxa1 {[%emt 0:00:01]} Bxf3 {[%emt 0:00:10]} 25. Rb2 {[%emt 0:00:01]} Qa8 {[%emt 0:00:02]} 26. Rxb8+ {[%emt 0:00:01]} Qxb8 {[%emt 0:00:01]} 27. Bb2 {[%emt 0:00:03]} h6 {[%emt 0:00:04]} 28. Nf4 {[%emt 0:00:03]} e5 {[%emt 0:00:10]} 29. Nd3 {[%emt 0:00:03]} e4 {[%emt 0:00:12]} 30. Ne1 {[%emt 0:00:02]} Be2 {[%emt 0:00:04]} 31. Bc1 {[%emt 0:00:02]} Nf8 {[%emt 0:00:05]} 32. Kf2 {[%emt 0:00:01]} Bg4 {[%emt 0:00:03]} 33. Bg2 {[%emt 0:00:01]} Qb1 {[%emt 0:00:04]} 34. h3 {[%emt 0:00:01]} Be6 {[%emt 0:00:02]} 35. d5 {[%emt 0:00:02]} Bd7 {[%emt 0:00:02]} 36. Bxh6 {[%emt 0:00:01]} Ng6 {[%emt 0:00:03]} 37. Bg5 {[%emt 0:00:02]} Ne5 {[%emt 0:00:02]} 38. Bxf6 {[%emt 0:00:02]} gxf6 {[%emt 0:00:00]} 39. Qe3 {[%emt 0:00:06]} Bf5 {[%emt 0:00:02]} 40. g4 {[%emt 0:00:02]} Bg6 {[%emt 0:00:02]} 41. Bf1 {[%emt 0:00:01]} Qa2+ {[%emt 0:00:02]} 42. Qe2 {[%emt 0:00:02]} Qa3 {[%emt 0:00:03]} 43. Qe3 {[%emt 0:00:01]} Qb2+ {[%emt 0:00:02]} 44. Kg3 {[%emt 0:00:03]} Qb4 {[%emt 0:00:04]} 45. Nc2 {[%emt 0:00:03]} Qb1 {[%emt 0:00:01]} 46. Ne1 {[%emt 0:00:01]} Qa1 {[%emt 0:00:03]} 47. h4 {[%emt 0:00:03]} Qb1 {[%emt 0:00:02]} 48. h5 {[%emt 0:00:02]} Bh7 {[%emt 0:00:01]} 49. g5 {[%emt 0:00:03]} f5 {[%emt 0:00:03]} 50. h6 {[%emt 0:00:02]} Bg6 {[%emt 0:00:03]} 51. Kf4 {[%emt 0:00:01]} Qd1 {[%emt 0:00:01]} 52. Qe2 {[%emt 0:00:01]} Qc1+ {[%emt 0:00:02]} 53. Qe3 {[%emt 0:00:01]} Qa1 {[%emt 0:00:03]} 54. Kg3 {[%emt 0:00:01]} Kh7 {[%emt 0:00:01]} 55. Kf4 {[%emt 0:00:03]} Ng4 {[%emt 0:00:02]} 0-1

[Event "GCT Superbet Blitz Poland 2025"]
[Site "Warsaw"]
[Date "2025.04.29"]
[Round "4"]
[White "Praggnanandhaa R"]
[Black "Vachier-Lagrave, Maxime"]
[Result "1-0"]
[ECO "D04"]
[WhiteElo "2758"]
[BlackElo "2722"]
[Annotator "TA"]
[PlyCount "123"]
[EventDate "2025.??.??"]
[EventType "blitz"]
[TimeControl "300+2"]

{[%evp 11,123,9,6,0,16,8,10,11,35,12,12,3,12,12,13,5,14,6,16,19,12,8,17,0,12,13,14,22,21,14,15,20,49,54,79,84,87,61,63,56,90,90,90,81,75,75,73,79,108,68,90,51,33,-2,82,43,57,64,71,10,72,60,83,0,3,0,55,44,34,39,129,126,242,243,251,245,264,268,306,237,227,180,193,179,183,175,228,227,233,232,263,219,294,277,287,284,287,0,258,238,376,378,481,484,627,614,760,695,795,754,886,910,882,866]} 1. d4 {[%emt 0:00:01]} Nf6 {[%emt 0:00:01]} 2. Nf3 {[%emt 0:00:01]} g6 {[%emt 0:00:02]} 3. Nbd2 {[%emt 0:00:05]} d5 {[%emt 0:00:04]} 4. b3 {[%emt 0:00:01]} Bg7 {[%emt 0:00:04]} 5. Bb2 {[%emt 0:00:01]} O-O {[%emt 0:00:06]} 6. e3 {[%emt 0:00:02]} b6 {[%emt 0:00:01]} 7. Be2 {[%emt 0:00:03] D04: Colle System.} Bb7 {[%emt 0:00:01]} 8. O-O {[%emt 0:00:03]} Nbd7 {[%emt 0:00:02]} 9. c4 {[%emt 0:00:15] The position is equal.} e6 {[%emt 0:00:02]} 10. Rc1 {[%emt 0:00:02]} c5 {[%emt 0:00:03]} 11. Rc2 {[%emt 0:00:06]} Rc8 {[%emt 0:00:06]} 12. Qa1 {[%emt 0:00:10]} Qe7 $146 {[%emt 0:00:06]} ({RR} 12... Ne4 13. Rd1 Qe7 14. Ne5 Nxe5 15. dxe5 Nxd2 16. Rcxd2 Bh6 17. Ba3 Rfd8 18. f4 d4 19. Rxd4 Rxd4 20. Rxd4 Bc6 21. Rd2 Qb7 22. Qf1 g5 23. Bg4 gxf4 24. exf4 Qa8 25. Qf2 Rd8 26. Bc1 Rd4 27. Rxd4 {Ngo,T (2047)-Do Thi Diem,T (1898) Ho Chi Minh City 2010 1-0 (57)}) 13. dxc5 $146 {[%emt 0:00:23]} (13. Rd1 Rfd8 14. Ne5 Nxe5 15. dxe5 Ne4 16. Nxe4 dxe4 17. Rcd2 Qc7 18. Rxd8+ Rxd8 19. Rxd8+ Qxd8 {½-½ Kannenberg,K (2134)-Kraich,K (2096) Landesliga Nord 1819 2018 (7.3)}) 13... bxc5 {[%emt 0:00:03]} 14. Ne5 {[%emt 0:00:06]} Nxe5 {[%emt 0:00:18]} 15. Bxe5 {[%emt 0:00:02]} Rfd8 {[%emt 0:00:02]} 16. Nf3 {[%emt 0:00:06]} Ne8 {[%emt 0:00:12]} 17. Rd1 {[%emt 0:01:12]} h5 {[%emt 0:00:08]} 18. h3 {[%emt 0:00:03]} Bxe5 {[%emt 0:00:18]} 19. Qxe5 {[%emt 0:00:02]} dxc4 {[%emt 0:00:18]} 20. Rxd8 {[%emt 0:00:24]} Rxd8 {[%emt 0:00:01]} 21. Rxc4 {[%emt 0:00:05]} Rd5 {[%emt 0:00:01]} 22. Qb2 {[%emt 0:00:14]} Nf6 {[%emt 0:00:22]} 23. Qa3 {[%emt 0:00:16]} a6 {[%emt 0:00:31]} 24. Qb2 {[%emt 0:00:19]} Nd7 {[%emt 0:00:10]} 25. Rc1 {[%emt 0:00:08]} Qf6 {[%emt 0:00:17]} 26. Qxf6 {[%emt 0:00:16]} Nxf6 {[%emt 0:00:01]} 27. Kf1 {[%emt 0:00:06]} Ne4 {[%emt 0:00:14]} 28. Ke1 {[%emt 0:00:01]} Kf8 {[%emt 0:00:01]} 29. Rc4 {[%emt 0:00:15]} Nd6 {[%emt 0:00:04]} 30. Rc2 {[%emt 0:00:13]} Ne4 {[%emt 0:00:08]} 31. g3 {[%emt 0:00:18]} Ke7 {[%emt 0:00:06]} 32. h4 {[%emt 0:00:09]} Kf6 {[%emt 0:00:33]} (32... Rf5 $1 $11) 33. Ng1 {[%emt 0:00:19]} Rd8 {[%emt 0:00:13]} 34. Bf3 {[%emt 0:00:05]} Rc8 {[%emt 0:00:01]} 35. Ne2 {[%emt 0:00:04]} (35. Rc4 $16 Ke5 36. Ra4) 35... Ke7 {[%emt 0:00:10]} (35... Nd6 $1 $11 {keeps the balance.} 36. Bxb7 Nxb7) 36. Nf4 {[%emt 0:00:01]} Nd6 {[%emt 0:00:01]} 37. Be2 {[%emt 0:00:09] White is more active.} (37. Bxb7 $16 Nxb7 38. e4) 37... a5 $11 {[%emt 0:00:05]} 38. Rc1 {[%emt 0:00:07]} Be4 {[%emt 0:00:13]} (38... Kf6 $11) 39. f3 $14 {[%emt 0:00:03]} Bb7 {[%emt 0:00:01]} 40. e4 {[%emt 0:00:01]} e5 {[%emt 0:00:01]} (40... a4 $14) 41. Nd3 $16 {[%emt 0:00:01][%csl Bc5,Be5]} c4 {[%emt 0:00:01]} (41... f6 $16) 42. Nxe5 $18 {[%emt 0:00:01]} cxb3 {[%emt 0:00:05]} 43. Rxc8 {[%emt 0:00:01]} Bxc8 {[%emt 0:00:01]} 44. axb3 {[%emt 0:00:02][%mdl 4096] Endgame KBN-KBN. White is a pawn up.} Bb7 {[%emt 0:00:14]} 45. Kd2 {[%emt 0:00:01]} Ke6 {[%emt 0:00:01]} 46. Nd3 {[%emt 0:00:00]} Bc6 {[%emt 0:00:04]} 47. Nc5+ {[%emt 0:00:03]} Ke7 {[%emt 0:00:02]} 48. Ke3 {[%emt 0:00:01]} Nc8 {[%emt 0:00:05]} (48... Nb5 49. Bc4 Na3) 49. Kd4 {[%emt 0:00:03]} Nb6 {[%emt 0:00:01]} 50. Bd1 {[%emt 0:00:02]} Kd6 {[%emt 0:00:03]} 51. Bc2 {[%emt 0:00:06]} Ba8 {[%emt 0:00:04]} 52. f4 {[%emt 0:00:02]} Bc6 {[%emt 0:00:02]} 53. Bd1 {[%emt 0:00:03]} Ke7 {[%emt 0:00:03]} 54. Bc2 $2 {[%emt 0:00:03] [#]} (54. Na4 $18 Nc8 55. e5) 54... Nc8 {[%emt 0:00:05][%mdl 8192]} (54... Kd6 $1 $11 55. Bd3 Ke7) 55. Na6 {[%emt 0:00:02]} Kd6 {[%emt 0:00:02]} (55... Nd6 {keeps fighting.} 56. Bd3 a4) 56. e5+ {[%emt 0:00:02]} Ke7 {[%emt 0:00:04]} 57. Kc5 {[%emt 0:00:01] White is clearly winning.} Bd7 {[%emt 0:00:05]} 58. Nb8 {[%emt 0:00:02]} Be8 {[%emt 0:00:13]} 59. Nc6+ {[%emt 0:00:03]} Kd7 {[%emt 0:00:02]} 60. Nxa5 {[%emt 0:00:01]} Kc7 {[%emt 0:00:01]} 61. Nc4 {[%emt 0:00:00]} Bd7 {[%emt 0:00:03]} 62. Nd6 {[%emt 0:00:01] Weighted Error Value: White=0.17 (very precise) /Black=0.39 Loses game: 	--- 	Black=1 Missed win: 	White=1 	--- Mistake: 	White=2 	Black=7 Inaccurate: 	White=4 	Black=4 OK: 	White=20 	Black=18 Best: 	White=5 	---} 1-0

[Event "GCT Superbet Blitz Poland 2025"]
[Site "Warsaw"]
[Date "2025.04.29"]
[Round "4"]
[White "Aravindh, Chithambaram VR."]
[Black "Duda, Jan-Krzysztof"]
[Result "1-0"]
[ECO "B22"]
[WhiteElo "2749"]
[BlackElo "2739"]
[Annotator "RC"]
[PlyCount "117"]
[EventDate "2025.??.??"]
[EventType "blitz"]
[TimeControl "300+2"]

1. e4 {[%emt 0:00:01]} c5 {[%emt 0:00:01]} 2. c3 {[%emt 0:00:02]} Nf6 {[%emt 0:00:04]} 3. e5 {[%emt 0:00:02]} Nd5 {[%emt 0:00:02]} 4. Bc4 {[%emt 0:00:02]} Nb6 {[%emt 0:00:07]} 5. Bb3 {[%emt 0:00:01]} d5 {[%emt 0:00:07]} 6. exd6 {[%emt 0:00:05]} Qxd6 {[%emt 0:00:02]} 7. Na3 {[%emt 0:00:19]} Nc6 {[%emt 0:00:26]} 8. Ne2 {[%emt 0:00:17]} Bg4 {[%emt 0:00:35]} 9. O-O {[%emt 0:00:27]} e6 {[%emt 0:00:25]} 10. f3 {[%emt 0:00:39]} Bf5 {[%emt 0:00:08]} 11. d4 {[%emt 0:00:07]} cxd4 {[%emt 0:00:08]} 12. Nb5 {[%emt 0:00:02]} Qe5 $146 {[%emt 0:00:50]} ({RR} 12... Qd7 13. Nbxd4 Bg6 14. Nxc6 Qxc6 15. Nd4 Bc5 16. Be3 Qc7 17. Qe2 O-O 18. Rad1 Bd6 19. g3 Qe7 20. Nxe6 fxe6 21. Bxb6 Rfe8 22. Bf2 Kh8 23. Rfe1 Bf7 24. Rd4 Bc5 25. Re4 Bxf2+ 26. Qxf2 Qf6 27. Rf4 {Sevillano,E (2323)-Balakrishnan,P (2510) Nassau BAH 2024 1-0 (42)}) ({RR} 12... Qd7 13. Nbxd4 Bg6 14. Nxc6 Qxc6 15. Nd4 Bc5 16. Be3 Qc7 17. Qe2 O-O 18. Rad1 Bd6 19. g3 Qe7 20. Nxe6 fxe6 21. Bxb6 Rfe8 22. Bf2 Kh8 23. Rfe1 Bf7 24. Rd4 Bc5 25. Re4 Bxf2+ 26. Qxf2 Qf6 27. Rf4 {Sevillano,E (2323)-Balakrishnan,P (2510) Nassau BAH 2024 1-0 (42)}) 13. Nexd4 {[%emt 0:00:18]} Nxd4 {[%emt 0:00:10]} 14. Nxd4 {[%emt 0:00:04]} Bc5 {[%emt 0:00:03]} 15. Re1 {[%emt 0:00:03]} Qc7 {[%emt 0:01:20]} 16. Be3 {[%emt 0:00:21]} Bxd4 {[%emt 0:00:02]} 17. Bxd4 {[%emt 0:00:27]} O-O {[%emt 0:00:03]} 18. Qd2 {[%emt 0:00:05]} h6 {[%emt 0:00:11]} 19. Qf2 {[%emt 0:00:11]} Rfd8 {[%emt 0:00:21]} 20. Re5 {[%emt 0:00:07]} Nd7 {[%emt 0:00:12]} 21. Re2 {[%emt 0:00:23]} a5 {[%emt 0:00:01]} 22. a4 {[%emt 0:00:10]} b6 {[%emt 0:00:03]} 23. h4 {[%emt 0:00:51]} Nc5 {[%emt 0:00:11]} 24. Be5 {[%emt 0:00:02]} Qe7 {[%emt 0:00:06]} 25. Bc4 {[%emt 0:00:03]} Bd3 {[%emt 0:00:05]} 26. Qg3 {[%emt 0:00:05]} f6 {[%emt 0:00:05]} 27. Bxd3 {[%emt 0:00:08]} Rxd3 {[%emt 0:00:05]} 28. Bf4 {[%emt 0:00:07]} Kh7 {[%emt 0:00:02]} 29. Rae1 {[%emt 0:00:07]} e5 {[%emt 0:00:01]} 30. Be3 {[%emt 0:00:03]} Nxa4 {[%emt 0:00:02]} 31. Qg4 {[%emt 0:00:02]} Rxe3 {[%emt 0:00:02]} 32. Rxe3 {[%emt 0:00:02]} Nc5 {[%emt 0:00:00]} 33. b4 {[%emt 0:00:01]} axb4 {[%emt 0:00:01]} 34. cxb4 {[%emt 0:00:01]} Ra4 {[%emt 0:00:04]} 35. Qf5+ {[%emt 0:00:10]} g6 {[%emt 0:00:01]} 36. Qb1 {[%emt 0:00:03]} Ne6 {[%emt 0:00:01]} 37. h5 {[%emt 0:00:05]} Nf4 {[%emt 0:00:01]} 38. hxg6+ {[%emt 0:00:03]} Kg7 {[%emt 0:00:00]} 39. Rd1 {[%emt 0:00:03]} Rxb4 {[%emt 0:00:03]} 40. Qf5 {[%emt 0:00:05]} Ne6 {[%emt 0:00:05]} 41. Red3 {[%emt 0:00:05]} Nd4 {[%emt 0:00:04]} 42. Qc8 {[%emt 0:00:02]} Rb2 {[%emt 0:00:02]} 43. R3d2 {[%emt 0:00:03]} Rxd2 {[%emt 0:00:02]} 44. Rxd2 {[%emt 0:00:01]} Qb4 {[%emt 0:00:02]} 45. Qe8 {[%emt 0:00:04]} Qc4 {[%emt 0:00:03]} 46. Rd1 {[%emt 0:00:02]} h5 {[%emt 0:00:02]} 47. Re1 {[%emt 0:00:01]} h4 {[%emt 0:00:01]} 48. Re4 {[%emt 0:00:03]} h3 {[%emt 0:00:02]} 49. Rh4 {[%emt 0:00:01]} Ne2+ {[%emt 0:00:03]} 50. Kh2 {[%emt 0:00:01]} Qxh4 {[%emt 0:00:02]} 51. Qf7+ {[%emt 0:00:01]} Kh6 {[%emt 0:00:00]} 52. Qh7+ {[%emt 0:00:00]} Kg5 {[%emt 0:00:01]} 53. Qxh4+ {[%emt 0:00:02]} Kxh4 {[%emt 0:00:02]} 54. g7 {[%emt 0:00:03]} hxg2 {[%emt 0:00:01]} 55. Kxg2 {[%emt 0:00:02]} Nf4+ {[%emt 0:00:02]} 56. Kf2 {[%emt 0:00:04]} Nh3+ {[%emt 0:00:04]} 57. Ke3 {[%emt 0:00:02]} f5 {[%emt 0:00:02]} 58. g8=Q {[%emt 0:00:02]} Ng5 {[%emt 0:00:01]} 59. Qh8+ {[%emt 0:00:01]} 1-0